bitfinex/quotes_ETHUSD_20250725
["timestamp","ask_amount","ask_price","bid_price","bid_amount"]
[1753432812260,0.8294,3656.4,3656.0,4.376]
[1753432812420,0.8294,3656.4,3656.2,2.73507797]
[1753432812752,0.8294,3656.4,3656.0,2.73522975]
[1753432812928,0.8294,3656.4,3656.1,2.73509732]
[1753432813106,0.8294,3656.4,3655.8,0.1368]
[1753432813320,0.8294,3656.4,3656.2,2.73505212]
[1753432813831,0.8294,3656.4,3656.3,2.73500533]
[1753432814203,0.1368,3656.5,3656.4,2.73493053]
[1753432814404,0.9203,3656.7,3656.6,2.73478094]
[1753432814639,0.7835,3657.0,3656.9,2.73455659]
[1753432815021,0.9203,3657.0,3656.8,2.73460787]
[1753432815746,0.9203,3657.0,3656.7,2.73468719]
[1753432815953,0.7835,3657.0,3656.3,0.7808]
[1753432816104,0.7835,3657.0,3656.7,0.1368]
[1753432816304,0.7835,3657.0,3656.7,0.5723]
[1753432816549,0.14036917,3657.2,3657.1,2.73440704]
[1753432816729,0.1368,3657.2,3657.1,2.73440704]
[1753432817052,0.1368,3657.2,3657.1,3.17960704]
[1753432817399,0.1388,3657.6,3657.5,2.73410799]
[1753432817831,0.002,3657.6,3657.5,8.01240799]
[1753432818035,0.002,3657.6,3657.5,8.14920799]
[1753432818369,0.8188,3658.7,3658.1,2.73360317]
[1753432818547,0.8188,3658.7,3658.6,2.73328595]
[1753432818904,0.8188,3658.7,3658.2,2.87031835]
[1753432819347,0.8188,3658.7,3658.4,2.7333691]
[1753432819573,0.1368,3658.6,3658.5,2.73336066]
[1753432819908,0.00313695,3658.9,3658.8,2.73313654]
[1753432820254,0.13993695,3658.9,3658.7,2.73321087]
[1753432820453,0.13993695,3658.9,3658.3,0.1368]
[1753432820662,0.00313695,3658.9,3658.2,2.73351586]
[1753432820802,0.1368,3658.4,3657.9,4.5128]
[1753432821009,0.6361,3658.4,3658.0,2.73373428]
[1753432821208,0.6361,3658.4,3658.1,2.73365275]
[1753432821421,0.6361,3658.4,3657.9,0.1368]
[1753432821635,0.1368,3658.2,3658.1,2.73365955]
[1753432821837,0.8251,3658.8,3658.4,2.73337042]
[1753432822008,0.8251,3658.8,3658.5,2.73335309]
[1753432822248,0.8251,3658.8,3658.7,2.73321124]
[1753432822559,0.00313695,3658.9,3658.8,2.73313654]
[1753432822760,0.00313695,3658.9,3658.8,3.17833654]
[1753432823660,0.002,3660.8,3658.8,5.578]
[1753432823863,0.1368,3660.1,3659.7,2.73240595]
[1753432824046,0.1368,3660.1,3659.6,0.1368]
[1753432824246,0.1368,3660.1,3659.6,2.86931564]
[1753432824447,0.1368,3660.1,3659.8,2.73232069]
[1753432824645,0.1368,3660.1,3659.6,0.1368]
[1753432824885,0.7688,3660.0,3659.5,2.73259887]
[1753432825095,0.1368,3659.8,3659.4,4.382]
[1753432825247,0.00333145,3659.9,3659.5,0.4452]
[1753432825448,0.00333145,3659.9,3659.8,2.73238974]
[1753432825666,0.00333145,3659.9,3659.6,0.4452]
[1753432825908,0.00333145,3659.9,3659.6,2.732532]
[1753432826095,0.1368,3659.8,3659.7,0.4452]
[1753432826252,0.00333145,3659.9,3659.7,3.17764779]
[1753432826569,0.1368,3660.1,3659.8,0.4452]
[1753432826970,0.00333145,3660.0,3659.5,0.1368]
[1753432827155,0.00333145,3660.0,3659.5,3.31458099]
[1753432827369,0.00333145,3660.0,3659.6,2.73253569]
[1753432827692,0.00333145,3660.0,3659.5,0.582]
[1753432827892,0.1368,3659.8,3659.4,4.378]
[1753432828097,0.1368,3659.8,3659.3,0.1368]
[1753432828390,0.1368,3659.8,3658.5,2.73329453]
[1753432828391,2.73274302,3659.4,3658.5,2.73329453]
[1753432828589,0.1368,3659.0,3658.5,7.24710561]
[1753432828908,0.1368,3659.0,3658.6,0.4452]
[1753432829121,0.1368,3659.0,3658.5,0.1368]
[1753432829253,2.86984584,3659.0,3658.4,4.5168]
[1753432829448,0.1368,3659.0,3658.4,4.5168]
[1753432829667,2.87001667,3658.7,3658.2,0.1368]
[1753432829865,2.7333952,3658.5,3658.2,0.1368]
[1753432830168,2.7333952,3658.5,3657.9,4.379]
[1753432830169,0.1368,3658.4,3657.9,0.1368]
[1753432830569,0.1368,3658.4,3657.9,0.582]
[1753432830902,2.87024749,3658.4,3657.9,0.582]
[1753432831108,3.29380431,3658.4,3657.5,0.4452]
[1753432831409,0.774,3658.0,3657.3,0.001]
[1753432831617,0.1368,3657.5,3657.3,0.001]
[1753432831900,2.73418275,3657.4,3657.3,0.001]
[1753432833449,3.23348275,3657.4,3657.3,0.001]
[1753432833595,4.18408275,3657.4,3657.3,0.001]
[1753432833930,4.04418275,3657.4,3657.3,0.001]
[1753432834226,5.17358521,3657.4,3657.3,0.001]
[1753432834824,0.8107,3657.4,3657.3,0.001]
[1753432835030,3.54488275,3657.4,3657.3,0.001]
[1753432835896,4.04418275,3657.4,3657.3,0.001]
[1753432837814,14.42614562,3657.4,3657.3,1e-08]
[1753432838139,7.10310615,3656.7,3656.6,1e-08]
[1753432838462,12.46187821,3656.7,3656.6,1e-08]
[1753432838654,13.10291051,3656.7,3656.6,1e-08]
[1753432840249,8.72791051,3656.7,3656.6,1e-08]
[1753432840428,13.11091051,3656.7,3656.6,1e-08]
[1753432841458,12.97101051,3656.7,3656.6,1e-08]
[1753432841781,13.11091051,3656.7,3656.6,1e-08]
[1753432843328,13.10907821,3656.7,3656.6,1e-08]
[1753432843623,13.11158512,3656.7,3656.6,1e-08]
[1753432844373,13.10407821,3656.7,3656.6,1e-08]
[1753432844528,13.10658512,3656.7,3656.6,1e-08]
[1753432844754,12.96768512,3656.7,3656.6,1e-08]
[1753432844955,8.58868512,3656.7,3656.6,1e-08]
[1753432845177,12.96868512,3656.7,3656.6,1e-08]
[1753432845381,13.10858512,3656.7,3656.6,1e-08]
[1753432846260,13.10607821,3656.7,3656.6,1e-08]
[1753432846586,13.10658512,3656.7,3656.6,1e-08]
[1753432846956,13.10407821,3656.7,3656.6,1e-08]
[1753432847878,13.24308155,3656.7,3656.6,1e-08]
[1753432851406,3.427,3656.4,3654.7,0.001]
[1753432851706,5.73612783,3654.8,3654.7,0.001]
[1753432851859,10.11412783,3654.8,3654.7,0.001]
[1753432852332,7.378,3654.8,3654.7,0.4607]
[1753432852563,7.378,3654.8,3654.7,0.001]
[1753432852564,10.11412783,3654.8,3654.7,0.001]
[1753432852892,2.73695158,3653.7,3653.6,0.4597]
[1753432853079,7.11495158,3653.7,3653.6,0.4597]
[1753432853680,4.378,3653.7,3653.6,0.4597]
[1753432853863,7.11495158,3653.7,3653.6,0.4597]
[1753432854071,7.11495158,3653.7,3653.2,0.8305]
[1753432854072,4.378,3653.7,3653.3,0.4597]
[1753432854299,7.11501841,3653.7,3653.4,0.4597]
[1753432854493,7.11501841,3653.7,3653.2,0.8305]
[1753432854697,2.7373806,3653.2,3652.9,0.4597]
[1753432854997,4.378,3653.1,3652.8,0.7885]
[1753432855295,7.11540981,3653.1,3652.8,0.7885]
[1753432855502,4.378,3653.1,3652.9,0.4597]
[1753432855662,4.378,3653.1,3652.8,1.2428]
[1753432855859,4.378,3653.1,3653.0,0.4597]
[1753432857004,3.0,3653.6,3653.0,0.914]
[1753432857196,4.379,3653.5,3653.2,2.73732617]
[1753432857394,2.73665609,3654.1,3653.3,0.914]
[1753432857596,2.73687667,3653.8,3653.3,0.4597]
[1753432857890,7.11595496,3653.7,3653.3,0.4597]
[1753432858096,7.11597336,3653.7,3653.4,0.4597]
[1753432858292,2.73702649,3653.6,3653.5,0.4597]
[1753432858620,4.379,3653.7,3652.8,0.7885]
[1753432858621,2.7371738,3653.5,3653.0,0.4597]
[1753432858821,4.379,3653.4,3653.0,0.4597]
[1753432859007,2.73730141,3653.3,3653.0,0.4597]
[1753432859211,7.11633751,3653.2,3653.0,0.4597]
[1753432859520,7.11633751,3653.2,3652.8,0.7885]
[1753432859521,2.73755098,3652.9,3652.8,0.001]
[1753432859836,0.8145,3653.2,3652.9,0.4597]
[1753432859837,2.73738769,3653.2,3652.9,0.4597]
[1753432859999,4.379,3653.1,3652.9,0.4597]
[1753432860185,4.379,3653.0,3652.8,0.001]
[1753432860388,4.379,3652.9,3652.8,0.001]
[1753432860583,4.379,3652.9,3652.0,0.001]
[1753432860584,2.73804927,3652.3,3652.0,0.001]
[1753432860796,3.0,3652.2,3652.0,0.001]
[1753432861083,7.379,3652.1,3652.0,0.001]
[1753432861414,7.51913145,3652.1,3652.0,0.001]
[1753432861923,7.51913145,3652.1,3652.0,0.4607]
[1753432862122,3.14013145,3652.1,3652.0,0.001]
[1753432862293,7.51913145,3652.1,3652.0,0.4607]
[1753432862689,7.51913145,3652.1,3652.0,0.001]
[1753432863314,4.52013145,3652.1,3652.0,0.915]
[1753432863641,4.38333145,3652.1,3652.0,1.08588]
[1753432863840,4.38333145,3652.1,3652.0,0.4607]
[1753432864147,0.14013145,3652.1,3652.0,0.4607]
[1753432864346,4.52013145,3652.1,3652.0,0.915]
[1753432865221,0.00333145,3652.1,3652.0,4.42812562]
[1753432865420,0.00333145,3652.1,3652.0,5.31169115]
[1753432865635,0.1368,3653.3,3653.2,2.73732617]
[1753432865815,4.5168,3653.5,3653.2,0.914]
[1753432866010,4.5168,3653.5,3653.3,0.4597]
[1753432866234,2.7373247,3653.3,3652.8,1.2799]
[1753432866415,0.1368,3653.0,3652.8,1.2799]
[1753432866614,0.1368,3653.0,3652.3,2.73799728]
[1753432866615,4.5168,3653.0,3652.3,0.7702]
[1753432866952,0.1368,3652.7,3652.3,1.2299]
[1753432867114,4.38,3652.6,3652.3,0.7702]
[1753432867314,4.38,3652.6,3652.4,0.4597]
[1753432867513,4.38,3652.6,3652.3,3.50819269]
[1753432867713,0.1368,3652.7,3652.5,0.4597]
[1753432867912,0.0018323,3653.0,3652.6,0.8017]
[1753432868126,0.0018323,3653.0,3652.6,1.2614]
[1753432868322,0.1368,3652.7,3652.2,0.1368]
[1753432868523,3.0,3652.5,3652.1,0.8017]
[1753432868721,7.38,3652.4,3652.1,0.8017]
[1753432868955,0.1368,3652.2,3652.0,0.001]
[1753432869153,0.1368,3652.2,3652.1,0.4597]
[1753432869652,0.1368,3652.2,3652.1,4.46115065]
[1753432869841,4.38,3652.2,3652.1,1.723]
[1753432870616,4.38,3652.2,3652.1,0.4597]
[1753432870820,4.38,3652.2,3652.0,0.001]
[1753432871033,0.1368,3652.1,3652.0,0.4607]
[1753432871644,4.38,3652.2,3652.0,3.65321304]
[1753432871844,4.38,3652.2,3652.1,2.73815065]
[1753432872045,0.1386323,3652.3,3652.2,2.73807568]
[1753432872375,4.5196323,3652.3,3652.2,0.4597]
[1753432872758,7.5196323,3652.3,3652.2,0.4597]
[1753432872963,2.73815065,3652.1,3652.0,0.001]
[1753432873161,6.65825065,3652.1,3652.0,0.001]
[1753432873455,7.15825065,3652.1,3652.0,0.001]
[1753432873656,7.60298084,3652.1,3652.0,0.001]
[1753432873822,7.60197308,3652.1,3652.0,0.001]
[1753432874020,7.60298084,3652.1,3652.0,0.001]
[1753432874257,11.48398084,3652.1,3652.0,0.001]
[1753432874466,7.10298084,3652.1,3652.0,0.001]
[1753432874620,3.13780776,3652.1,3652.0,0.001]
[1753432874825,7.5178,3652.1,3652.0,0.4607]
[1753432875125,7.51880776,3652.1,3652.0,0.4607]
[1753432875880,10.25695841,3652.1,3652.0,0.001]
[1753432876020,11.55645515,3652.1,3652.0,0.001]
[1753432876733,3.13780776,3652.1,3652.0,0.001]
[1753432876957,10.25595065,3652.1,3652.0,0.4702]
[1753432877263,10.25732945,3652.1,3652.0,0.001]
[1753432877451,10.25595065,3652.1,3652.0,0.001]
[1753432877657,11.55672518,3652.1,3652.0,0.001]
[1753432877831,7.5191788,3652.1,3652.0,0.001]
[1753432878037,10.25732945,3652.1,3652.0,0.001]
[1753432879554,7.5191788,3652.1,3652.0,0.001]
[1753432879868,10.25732945,3652.1,3652.0,0.001]
[1753432880167,5.87632945,3652.1,3652.0,0.001]
[1753432880374,10.25732945,3652.1,3652.0,0.001]
[1753432881057,11.55686358,3652.1,3652.0,0.001]
[1753432882347,7.5191788,3652.1,3652.0,0.001]
[1753432882658,10.25732945,3652.1,3652.0,0.001]
[1753432885173,10.25932945,3652.1,3652.0,0.001]
[1753432890992,7.5201788,3652.1,3652.0,0.4702]
[1753432891162,10.25832945,3652.1,3652.0,0.4702]
[1753432891362,10.25832945,3652.1,3652.0,0.001]
[1753432891893,11.55796867,3652.1,3652.0,0.001]
[1753432893500,7.17796867,3652.1,3652.0,0.001]
[1753432893688,11.55796867,3652.1,3652.0,0.001]
[1753432895417,12.03256867,3652.1,3652.0,0.001]
[1753432895573,12.03256867,3652.1,3652.0,1e-08]
[1753432895574,12.98956867,3652.1,3652.0,1e-08]
[1753432895771,13.57815481,3652.1,3652.0,1e-08]
[1753432895985,28.07936665,3652.1,3652.0,1e-08]
[1753432896191,28.07936665,3652.1,3651.2,0.001]
[1753432896192,3.55895058,3651.3,3651.2,0.001]
[1753432896396,11.07575058,3651.3,3651.2,0.001]
[1753432896612,11.69025058,3651.3,3651.2,0.001]
[1753432896773,2.7389006,3651.1,3651.0,1e-08]
[1753432897100,11.55533982,3651.1,3651.0,1e-08]
[1753432897332,12.03115166,3651.1,3651.0,1e-08]
[1753432898788,12.17105166,3651.1,3651.0,1e-08]
[1753432899997,12.03115166,3651.1,3651.0,1e-08]
[1753432900392,12.17105166,3651.1,3651.0,1e-08]
[1753432901423,12.17105166,3651.1,3649.3,0.6868]
[1753432901424,3.54417573,3650.6,3650.5,1e-08]
[1753432901592,10.92417573,3650.6,3650.5,1e-08]
[1753432901786,11.39877573,3650.6,3650.5,1e-08]
[1753432902024,11.4000627,3650.6,3650.5,1e-08]
[1753432902320,3.0,3650.5,3648.7,0.7746]
[1753432902482,3.0,3650.5,3648.4,0.4781]
[1753432902483,2.74050138,3649.0,3647.8,0.02741378]
[1753432902687,4.38,3648.9,3648.0,0.7632]
[1753432902887,2.74070958,3648.7,3648.1,0.4692]
[1753432903118,4.38128697,3648.6,3648.1,0.4692]
[1753432903322,4.38128697,3648.6,3648.2,0.4781]
[1753432903507,4.38128697,3648.6,3648.0,0.7632]
[1753432903709,4.38128697,3648.6,3648.2,0.55]
[1753432904020,4.38128697,3648.6,3648.3,0.9473]
[1753432904223,3.0,3648.5,3648.0,0.7632]
[1753432904527,4.38,3648.4,3648.1,0.4692]
[1753432904740,4.38128697,3648.4,3648.1,0.4692]
[1753432904929,3.0,3648.3,3648.2,0.4692]
[1753432905220,2.74107837,3648.2,3648.0,0.7632]
[1753432905382,4.38,3648.1,3648.0,0.7632]
[1753432905790,4.38,3648.1,3647.7,1.0595]
[1753432905791,7.12242443,3648.1,3647.7,1.0595]
[1753432906021,4.38125316,3648.1,3647.7,1.5376]
[1753432906319,4.38125316,3648.1,3647.8,0.4692]
[1753432906820,4.38125316,3648.1,3647.9,0.4692]
[1753432906986,0.00125316,3648.1,3648.0,0.4635]
[1753432907188,0.00125316,3648.1,3648.0,5.19552807]
[1753432907824,0.8194,3650.1,3648.9,0.55]
[1753432908027,0.7877,3650.6,3649.4,0.55]
[1753432908212,0.7877,3650.6,3649.6,3.2900263]
[1753432908213,4.381,3650.5,3649.6,3.2900263]
[1753432908417,4.381,3650.5,3650.1,2.73964253]
[1753432908591,4.381,3650.5,3650.2,0.4635]
[1753432908787,3.0,3650.4,3649.7,0.7639]
[1753432909091,4.381,3650.3,3649.7,0.7639]
[1753432909293,0.4381,3650.2,3649.4,0.4635]
[1753432909601,2.74048895,3649.0,3648.6,0.7782]
[1753432909790,3.0,3648.9,3648.6,0.4635]
[1753432909990,3.0,3648.9,3647.9,0.4635]
[1753432909991,4.2185,3648.9,3647.9,0.4635]
[1753432910323,3.0,3648.6,3647.9,0.4635]
[1753432910534,4.381,3648.5,3647.9,0.4635]
[1753432910736,2.74100169,3648.4,3647.9,0.4635]
[1753432911027,7.12191321,3648.5,3647.9,0.4635]
[1753432911242,7.12191321,3648.5,3648.0,0.4635]
[1753432911525,2.74094757,3648.4,3647.8,0.7533]
[1753432911832,0.1368,3647.9,3647.8,1.3033]
[1753432912055,0.1368,3647.9,3647.8,4.95907836]
[1753432912192,3.0,3648.4,3648.2,0.55]
[1753432912193,0.00126837,3648.3,3648.2,0.55]
[1753432912499,7.381,3648.3,3648.2,1.0135]
[1753432912702,7.381,3648.3,3648.2,3.75457779]
[1753432913027,4.381,3648.3,3648.2,4.62602557]
[1753432913325,3.0,3649.5,3648.9,2.74054308]
[1753432913499,0.1368,3649.0,3648.9,3.29054308]
[1753432913688,4.5178,3649.0,3648.9,1.0135]
[1753432914022,4.5178,3649.0,3648.4,0.4635]
[1753432914023,3.0,3648.8,3648.4,0.4635]
[1753432914338,0.1368,3648.5,3648.4,3.20442752]
[1753432914504,4.381,3648.6,3648.5,3.2908524]
[1753432914708,0.00126837,3649.0,3648.5,3.2908524]
[1753432914709,0.1368,3648.8,3648.7,3.29067233]
[1753432915035,4.381,3648.8,3648.7,4.20507233]
[1753432915241,0.1368,3648.9,3648.8,4.04812705]
[1753432915530,4.38226837,3649.0,3647.9,0.7575]
[1753432915837,3.0,3648.9,3648.2,0.4635]
[1753432916334,2.74086503,3648.5,3648.2,0.4635]
[1753432916501,7.381,3648.5,3648.2,0.4635]
[1753432916701,7.381,3648.5,3648.3,0.4635]
[1753432916897,7.381,3648.5,3648.4,1.0135]
[1753432917230,3.0,3648.8,3648.5,0.55]
[1753432917400,3.0,3648.6,3648.5,0.55]
[1753432917600,3.0,3648.6,3648.3,0.55]
[1753432917806,3.0,3648.6,3648.3,3.29099681]
[1753432918004,3.0,3648.6,3648.4,0.4635]
[1753432918517,3.0,3648.6,3648.5,0.55]
[1753432918916,3.0,3648.6,3648.3,0.55]
[1753432919238,3.0,3648.6,3648.5,0.55]
[1753432919659,3.0,3648.6,3647.9,0.7575]
[1753432919980,3.0,3648.6,3648.3,0.4635]
[1753432920242,1.01216535,3648.5,3647.9,0.7575]
[1753432920446,3.0,3648.3,3647.9,1.221]
[1753432920944,4.382,3648.2,3648.1,3.29115119]
[1753432921128,4.382,3648.2,3648.1,0.55]
[1753432921330,4.38326837,3648.2,3648.1,3.75465292]
[1753432921634,4.38326837,3648.2,3648.1,1.0135]
[1753432921834,4.38326837,3648.2,3648.1,0.4635]
[1753432922409,4.38326837,3648.2,3647.9,0.7575]
[1753432922609,4.38326837,3648.2,3647.8,0.55]
[1753432922922,4.38326837,3648.2,3647.8,3.29136383]
[1753432923124,4.38326837,3648.2,3647.9,3.2048029]
[1753432923433,4.38326837,3648.2,3647.9,2.7413029]
[1753432923637,4.38326837,3648.2,3648.0,0.4635]
[1753432923850,0.00126837,3648.2,3648.1,0.55]
[1753432924020,7.38326837,3648.2,3648.1,1.0135]
[1753432924230,7.38326837,3648.2,3648.1,3.75465292]
[1753432924824,0.00126837,3648.2,3648.1,5.67374846]
[1753432925120,4.382,3649.1,3649.0,4.10907684]
[1753432925321,0.002,3649.5,3649.4,3.29017646]
[1753432925535,0.002,3649.5,3649.4,3.42697646]
[1753432925760,0.002,3649.5,3649.4,5.04954677]
[1753432926058,1.07000968,3650.1,3650.0,0.55]
[1753432926260,0.1368,3649.9,3649.7,2.73994896]
[1753432926436,0.1368,3649.9,3649.8,0.55]
[1753432926635,0.1368,3649.9,3649.3,0.4635]
[1753432926836,0.58868,3649.9,3649.1,0.8151]
[1753432927165,0.1368,3649.2,3648.9,3.20404721]
[1753432927661,4.382,3649.5,3649.0,1.0135]
[1753432927826,0.1368,3649.3,3649.1,0.4635]
[1753432928161,0.1368,3649.3,3649.2,3.75382664]
[1753432928363,0.1368,3649.3,3649.2,1.0135]
[1753432928658,0.1368,3649.3,3649.2,3.75382664]
[1753432928864,0.1368,3649.3,3649.2,1.0135]
[1753432929242,0.1368,3649.3,3649.2,3.75382664]
[1753432929642,0.1368,3649.3,3648.8,0.9065]
[1753432929840,3.0,3649.1,3648.9,0.55]
[1753432930033,3.87502684,3649.1,3648.5,0.7552]
[1753432930228,0.1368,3648.9,3648.5,0.7552]
[1753432930433,3.73822684,3649.1,3648.3,0.4635]
[1753432930434,0.1368,3648.6,3648.4,2.74091189]
[1753432930730,0.1368,3648.6,3648.5,2.7408524]
[1753432930931,0.1368,3648.6,3648.5,3.2043524]
[1753432931161,0.1368,3648.6,3648.5,0.4635]
[1753432931359,0.1368,3648.6,3648.3,2.7409964]
[1753432931551,4.381,3648.8,3648.3,2.7409964]
[1753432931874,0.1368,3648.4,3648.3,3.2909964]
[1753432932039,4.5178,3648.4,3648.3,0.55]
[1753432932438,4.5178,3648.4,3648.3,3.29100265]
[1753432932750,0.7723,3649.4,3648.7,2.74062762]
[1753432932936,0.1368,3648.8,3648.7,3.29062762]
[1753432933252,0.1368,3649.2,3649.1,2.74037892]
[1753432933457,7.5178,3649.2,3649.1,3.75387892]
[1753432933764,4.381,3649.2,3649.1,3.75387892]
[1753432934073,0.002,3649.5,3649.3,3.29025155]
[1753432934074,0.1368,3649.4,3649.3,3.29025155]
[1753432934371,0.002,3649.5,3649.4,3.29017646]
[1753432934536,0.002,3649.5,3649.4,3.75367646]
[1753432934737,0.002,3649.5,3649.0,0.55]
[1753432934988,0.1368,3649.2,3649.0,0.55]
[1753432935671,0.1368,3649.2,3648.9,0.55]
[1753432935870,0.1368,3649.2,3648.9,3.29054622]
[1753432936038,4.381,3649.1,3648.9,3.75404622]
[1753432936235,4.381,3649.1,3648.8,0.55]
[1753432936567,0.1368,3649.0,3648.8,3.75411005]
[1753432936869,0.1368,3649.0,3648.8,1.0135]
[1753432937164,0.00126837,3648.9,3648.8,1.0135]
[1753432937491,0.00126837,3648.9,3648.8,3.75852705]
[1753432939990,0.00126837,3648.9,3648.8,4.24582705]
[1753432941093,0.00126837,3648.9,3648.8,3.75852705]
[1753432943206,0.00126837,3648.9,3648.8,5.18350841]
[1753432943412,0.00126837,3648.9,3648.8,3.75852705]
[1753432944461,0.00126837,3648.9,3648.8,5.05903332]
[1753432944805,0.00126837,3648.9,3648.8,5.19583332]
[1753432945505,0.00126837,3648.9,3648.8,5.16842705]
[1753432945871,0.00126837,3648.9,3648.5,0.4679]
[1753432946110,0.00126837,3648.9,3648.5,3.20870566]
[1753432946264,0.00126837,3648.9,3648.5,2.74080566]
[1753432946807,4.38,3648.8,3648.5,2.74080566]
[1753432947699,4.38,3648.8,3648.6,2.74075724]
[1753432947900,4.38,3648.8,3648.3,2.74100083]
[1753432947901,4.38,3648.8,3648.5,2.7408029]
[1753432948107,4.38,3648.8,3648.5,2.7408524]
[1753432948403,4.38,3648.8,3648.5,3.2087524]
[1753432948602,4.38,3648.8,3648.7,2.74070216]
[1753432949011,4.38026837,3648.9,3648.6,3.20866776]
[1753432949385,4.38026837,3648.9,3648.7,2.74066009]
[1753432949801,0.00126837,3648.9,3648.6,2.74077716]
[1753432950105,0.00126837,3648.9,3648.3,1.0179]
[1753432950269,4.23374326,3648.8,3648.3,2.74098551]
[1753432950595,4.379,3649.0,3648.5,0.55]
[1753432950905,3.0,3649.2,3648.7,3.2906746]
[1753432951110,3.0,3649.2,3648.6,3.20862226]
[1753432951269,3.0,3649.2,3648.7,2.74070028]
[1753432951473,3.0,3649.2,3649.0,2.74046786]
[1753432951711,3.0,3649.2,3648.9,2.74053864]
[1753432952008,0.002,3649.5,3649.1,0.55]
[1753432952009,3.002,3649.5,3649.1,0.55]
[1753432952315,4.381,3649.5,3649.4,2.74017646]
[1753432952477,0.002,3649.5,3649.4,4.89521563]
[1753432953407,0.002,3649.5,3649.4,3.75807646]
[1753432953908,0.002,3649.5,3649.4,4.24537646]
[1753432954913,0.002,3649.5,3649.4,3.75807646]
[1753432955902,0.1388,3649.5,3648.8,0.6047]
[1753432956211,0.1368,3649.3,3648.8,0.6047]
[1753432956400,4.38,3649.5,3649.4,2.74017646]
[1753432956606,4.5168,3649.5,3649.4,2.74017646]
[1753432956803,0.002,3649.5,3649.4,3.75807646]
[1753432957108,0.002,3649.5,3649.4,5.17407822]
[1753432957310,0.002,3649.5,3649.4,5.96551871]
[1753432957547,0.002,3649.5,3649.4,5.93811695]
[1753432957888,0.002,3649.5,3648.9,0.7944]
[1753432958216,0.002,3649.5,3649.0,2.74044203]
[1753432958385,0.002,3649.5,3648.9,2.74055194]
[1753432958585,0.002,3649.5,3649.1,2.74035441]
[1753432959004,0.002,3649.5,3648.9,3.29055073]
[1753432959219,0.002,3649.5,3649.1,0.55]
[1753432959519,0.002,3649.5,3649.2,2.74028925]
[1753432959714,0.00126837,3649.4,3649.2,2.74028925]
[1753432960041,0.00126837,3649.4,3649.3,2.74025155]
[1753432960380,0.00126837,3649.4,3648.9,3.75840345]
[1753432960621,0.00126837,3649.4,3649.0,0.55]
[1753432960819,0.00126837,3649.4,3649.1,0.4679]
[1753432960993,0.00126837,3649.4,3649.0,0.55]
[1753432961538,0.00126837,3649.4,3648.6,1.7496]
[1753432961706,0.00126837,3649.4,3649.1,2.74033319]
[1753432961707,0.46206837,3649.4,3649.1,2.74033319]
[1753432961902,0.00126837,3649.4,3649.2,2.74032039]
[1753432962306,0.00126837,3649.4,3648.8,0.4679]
[1753432962307,0.00126837,3649.4,3649.1,2.74037742]
[1753432962804,0.00126837,3649.4,3649.1,2.74039668]
[1753432963000,0.00126837,3649.4,3649.0,2.74046354]
[1753432963242,0.4608,3649.3,3648.7,2.74069486]
[1753432963537,0.7873,3649.2,3648.6,0.55]
[1753432963740,3.0,3649.0,3648.2,0.4689]
[1753432963903,0.4608,3648.9,3648.3,2.74095154]
[1753432964104,0.4608,3648.9,3648.2,0.001]
[1753432964347,3.0,3648.8,3648.2,0.001]
[1753432964557,3.8328,3648.8,3648.2,0.001]
[1753432964713,3.57348004,3648.8,3648.2,0.001]
[1753432964916,0.8328,3648.8,3648.2,0.001]
[1753432965211,0.8328,3648.8,3648.2,2.74205397]
[1753432965434,0.5430143,3648.7,3648.2,2.74205397]
[1753432965642,0.8328,3648.8,3648.2,0.001]
[1753432965846,4.377,3648.8,3648.4,1.3514]
[1753432966035,4.377,3648.8,3648.7,0.55]
[1753432966209,4.377,3648.8,3648.7,3.29070216]
[1753432966405,0.76,3649.2,3649.0,2.74044993]
[1753432966651,7.377,3649.1,3649.0,2.74044993]
[1753432967513,7.37826837,3649.1,3649.0,2.74044993]
[1753432967841,4.51506837,3649.1,3648.6,2.74075248]
[1753432968018,4.27462684,3649.0,3648.3,2.74097583]
[1753432968207,0.1368,3648.5,3648.3,2.74100265]
[1753432968407,4.377,3648.4,3648.2,2.74206859]
[1753432968617,0.1368,3648.3,3648.2,2.74206859]
[1753432969014,4.37826837,3648.4,3648.3,2.74100265]
[1753432969335,4.5138,3648.4,3648.3,3.19250265]
[1753432969852,4.37826837,3648.4,3648.3,3.19250265]
[1753432970850,0.00126837,3648.4,3648.3,3.74250265]
[1753432971146,0.00126837,3648.4,3648.3,4.88285977]
[1753432971349,4.377,3648.5,3648.4,3.29092752]
[1753432971554,4.377,3648.5,3648.4,3.74242752]
[1753432971930,0.1368,3648.7,3648.6,2.74077728]
[1753432971931,4.5138,3648.7,3648.6,2.74077728]
[1753432972125,4.5138,3648.7,3648.6,3.19227728]
[1753432973643,4.5138,3648.7,3648.6,0.4515]
[1753432973823,4.9746,3648.7,3648.2,0.551]
[1753432974024,0.1368,3648.5,3648.3,2.74098969]
[1753432975257,0.1368,3648.5,3648.4,2.74092752]
[1753432975760,0.13806837,3648.5,3648.3,2.74098079]
[1753432975925,0.13806837,3648.5,3648.4,2.74092752]
[1753432978681,0.13806837,3648.5,3648.3,2.7409312]
[1753432978843,0.1368,3648.5,3648.4,2.74092752]
[1753432979980,0.1368,3648.5,3648.4,3.19242752]
[1753432980981,0.1368,3648.5,3648.2,2.74207334]
[1753432980982,5.74100265,3648.3,3648.2,0.001]
[1753432981283,3.0,3648.2,3647.7,0.2495]
[1753432981446,3.0,3648.2,3647.3,0.001]
[1753432981447,2.741679,3647.4,3647.3,0.001]
[1753432981776,0.7759,3647.4,3647.3,0.001]
[1753432981942,3.8113,3647.8,3647.3,0.4525]
[1753432982145,4.375,3648.0,3647.5,2.74153548]